bitfinex-derivatives/quotes_BTCF0:USTF0_20241021
["timestamp","ask_amount","ask_price","bid_price","bid_amount"]
[1729528278684,0.0004,67053.0,67052.0,0.08258]
[1729528279086,0.3612,67053.0,67052.0,0.07858]
[1729528279283,0.3612,67053.0,67052.0,0.08158]
[1729528279796,0.435779,67053.0,67052.0,0.08158]
[1729528279995,0.435779,67053.0,67052.0,0.007]
[1729528280781,0.435779,67053.0,67052.0,0.005]
[1729528280997,0.435779,67053.0,67052.0,0.004]
[1729528281392,0.436779,67053.0,67052.0,0.004]
[1729528281782,0.436779,67053.0,67052.0,0.001]
[1729528281987,0.436779,67053.0,67052.0,0.07658]
[1729528281988,0.435779,67053.0,67052.0,0.07658]
[1729528282197,0.436779,67053.0,67052.0,0.07658]
[1729528282587,0.436779,67053.0,67052.0,0.07558]
[1729528283095,0.47332272,67053.0,67052.0,0.07558]
[1729528283583,0.47232272,67053.0,67052.0,0.07458]
[1729528283987,0.3612,67053.0,67052.0,0.07458]
[1729528286690,0.3612,67053.0,67052.0,0.52198]
[1729528287794,0.3612,67053.0,67052.0,0.07458]
[1729528288908,0.3612,67053.0,67052.0,0.07558]
[1729528289098,0.3612,67053.0,67052.0,0.07858]
[1729528289797,0.435779,67053.0,67052.0,0.07858]
[1729528290201,0.435779,67053.0,67052.0,0.07758]
[1729528290399,0.435779,67053.0,67052.0,0.07858]
[1729528290601,0.435779,67053.0,67052.0,0.07758]
[1729528290820,0.435779,67053.0,67052.0,0.07658]
[1729528292105,0.3612,67053.0,67052.0,0.07458]
[1729528292403,0.3612,67053.0,67052.0,0.07558]
[1729528292703,0.49706047,67053.0,67052.0,0.03567641]
[1729528294195,0.55829609,67053.0,67052.0,0.03567641]
[1729528294511,0.55829609,67053.0,67052.0,0.03146967]
[1729528295311,0.55829588,67053.0,67052.0,0.03146967]
[1729528297291,0.19749588,67053.0,67052.0,0.03146967]
[1729528297708,0.79546132,67053.0,67052.0,0.03146967]
[1729528298291,0.7342257,67053.0,67052.0,0.03146967]
[1729528298493,0.55829588,67053.0,67052.0,0.03146967]
[1729528298707,0.49706026,67053.0,67047.0,0.07343161]
[1729528299008,0.0004,67048.0,67047.0,0.07343161]
[1729528299206,0.13626026,67048.0,67047.0,0.07343161]
[1729528299889,0.13626026,67048.0,67047.0,0.07943161]
[1729528300096,0.13626026,67048.0,67047.0,0.08343161]
[1729528300601,0.0004,67048.0,67047.0,0.08343161]
[1729528302410,0.0004,67048.0,67047.0,0.07743161]
[1729528302599,0.0004,67048.0,67047.0,0.08243161]
[1729528302992,0.0004,67048.0,67047.0,0.07843161]
[1729528303203,0.0004,67048.0,67047.0,0.52387161]
[1729528303508,0.0004,67048.0,67047.0,0.52887161]
[1729528305798,0.0004,67048.0,67047.0,0.52087161]
[1729528306000,0.0004,67048.0,67047.0,0.53087161]
[1729528307714,0.0004,67048.0,67047.0,0.08343161]
[1729528307911,0.0004,67048.0,67047.0,0.53087161]
[1729528308709,0.0004,67048.0,67047.0,0.70514]
[1729528308710,0.13625419,67048.0,67047.0,0.70514]
[1729528308912,0.13625419,67048.0,67047.0,0.530024]
[1729528309110,0.13625419,67048.0,67047.0,0.091584]
[1729528309510,0.13625419,67048.0,67047.0,0.090584]
[1729528309817,0.13625419,67048.0,67047.0,0.0710667]
[1729528310203,0.13625419,67048.0,67047.0,0.0770667]
[1729528310602,0.13625419,67048.0,67047.0,0.0700667]
[1729528310906,0.13625419,67048.0,67047.0,0.0770667]
[1729528311813,0.13625419,67048.0,67047.0,0.0760667]
[1729528312203,0.21083819,67048.0,67047.0,0.0740667]
[1729528312805,0.21083819,67048.0,67045.0,0.0004]
[1729528313104,0.074589,67044.0,67042.0,0.0002]
[1729528313411,0.63247598,67044.0,67043.0,0.07479]
[1729528313718,0.63287598,67044.0,67043.0,0.0002]
[1729528314111,0.63287598,67044.0,67043.0,0.07479]
[1729528314614,0.63287598,67044.0,67043.0,0.04866967]
[1729528314815,0.07459,67043.0,67040.0,0.074593]
[1729528315008,0.0004,67041.0,67035.0,0.00751488]
[1729528315209,0.3612,67036.0,67035.0,0.08211388]
[1729528315409,0.55828698,67036.0,67035.0,0.08211388]
[1729528315804,0.3612,67036.0,67035.0,0.08211388]
[1729528316007,0.3612,67036.0,67035.0,0.074599]
[1729528316308,0.3612,67036.0,67035.0,0.081599]
[1729528316513,0.3612,67036.0,67035.0,0.08918034]
[1729528316817,0.3622,67036.0,67035.0,0.09718034]
[1729528318213,0.3622,67036.0,67035.0,0.09018034]
[1729528318403,0.3622,67036.0,67035.0,0.09718034]
[1729528322914,0.44455792,67036.0,67035.0,0.09718034]
[1729528323111,0.49808672,67036.0,67035.0,0.09718034]
[1729528325327,0.60826422,67036.0,67035.0,0.09718034]
[1729528325528,0.66179302,67036.0,67035.0,0.09718034]
[1729528327027,0.49808672,67036.0,67035.0,0.09718034]
[1729528327212,0.60824259,67036.0,67035.0,0.09718034]
[1729528327418,0.66177139,67036.0,67035.0,0.09718034]
[1729528327728,0.66176835,67036.0,67035.0,0.09718034]
[1729528327928,0.30096835,67036.0,67035.0,1.15320034]
[1729528328111,0.00223761,67055.0,67037.0,0.2477]
[1729528328421,0.00223761,67055.0,67052.0,0.07458]
[1729528328936,0.074979,67053.0,67052.0,0.0002]
[1729528329619,0.1879,67053.0,67052.0,0.07578]
[1729528329819,0.262479,67053.0,67052.0,0.07578]
[1729528330323,0.265479,67053.0,67052.0,0.0022]
[1729528330715,0.0034,67053.0,67052.0,0.0022]
[1729528331028,0.0034,67053.0,67052.0,0.07578]
[1729528331210,0.0034,67053.0,67052.0,0.07678]
[1729528331614,0.0034,67053.0,67052.0,0.07578]
[1729528331913,0.0034,67053.0,67052.0,0.52318]
[1729528332627,0.0034,67053.0,67052.0,0.52218]
[1729528332925,0.0024,67053.0,67052.0,0.52318]
[1729528333421,0.0024,67053.0,67052.0,0.07578]
[1729528333822,0.0004,67053.0,67052.0,0.07478]
[1729528334027,0.0004,67053.0,67052.0,0.08078]
[1729528334322,0.0004,67053.0,67052.0,0.07478]
[1729528334521,0.0004,67053.0,67052.0,0.07878]
[1729528334722,0.0004,67053.0,67052.0,0.08178]
[1729528335128,0.0004,67053.0,67052.0,0.07878]
[1729528335328,0.0004,67053.0,67052.0,0.08078]
[1729528335919,0.0004,67053.0,67052.0,0.07678]
[1729528336125,0.0004,67053.0,67052.0,0.07978]
[1729528338031,0.11151988,67053.0,67052.0,0.0052]
[1729528339221,0.11151988,67053.0,67052.0,0.00350166]
[1729528339620,0.11151988,67053.0,67052.0,0.07808166]
[1729528339827,0.03694088,67053.0,67052.0,0.07608166]
[1729528340522,0.11151988,67053.0,67048.0,0.3608]
[1729528340722,0.03654088,67052.0,67050.0,0.074581]
[1729528340929,0.03654088,67051.0,67050.0,0.074581]
[1729528342122,0.0004,67053.0,67048.0,0.002]
[1729528342123,0.074583,67049.0,67048.0,0.002]
[1729528342325,0.074983,67049.0,67048.0,0.002]
[1729528342525,0.074983,67049.0,67047.0,0.02766691]
[1729528342526,0.074584,67048.0,67047.0,0.0002]
[1729528342724,0.202384,67048.0,67047.0,0.0002]
[1729528343829,0.2481934,67048.0,67047.0,0.0002]
[1729528344028,0.202384,67048.0,67047.0,0.0002]
[1729528344225,0.24819318,67048.0,67047.0,0.0002]
[1729528344430,0.202384,67048.0,67047.0,0.0002]
[1729528344630,0.24819333,67048.0,67047.0,0.0002]
[1729528344938,0.24819333,67048.0,67031.0,0.10108933]
[1729528344939,0.074592,67042.0,67031.0,0.10108933]
[1729528345235,0.0004,67032.0,67031.0,0.074803]
[1729528345633,0.075002,67032.0,67031.0,0.074803]
[1729528345823,0.0004,67032.0,67031.0,0.074803]
[1729528346023,0.17434709,67032.0,67031.0,0.09465211]
[1729528346228,0.12081498,67032.0,67031.0,0.11765211]
[1729528346743,0.12081498,67032.0,67031.0,0.023]
[1729528346744,0.17434709,67032.0,67031.0,0.023]
[1729528347037,0.17434709,67032.0,67031.0,0.01284089]
[1729528347239,0.36664709,67032.0,67031.0,0.01284089]
[1729528347428,0.5599824,67032.0,67031.0,0.01284089]
[1729528347626,0.5599824,67032.0,67024.0,0.0002]
[1729528347830,0.3612,67025.0,67010.0,0.0002]
[1729528348035,0.0004,67011.0,67010.0,0.0002]
[1729528348240,0.05393211,67011.0,67010.0,0.074826]
[1729528348632,0.12855711,67011.0,67010.0,0.074826]
[1729528348832,0.17438639,67011.0,67010.0,0.074826]
[1729528349229,0.12085428,67011.0,67010.0,0.074826]
[1729528350029,0.12085428,67011.0,67010.0,0.075826]
[1729528350634,0.12085428,67011.0,67010.0,0.080826]
[1729528351037,0.12085428,67011.0,67010.0,0.0012]
[1729528351341,0.12185428,67011.0,67010.0,0.0012]
[1729528351738,0.12085428,67011.0,67010.0,0.0012]
[1729528351947,0.12085428,67011.0,67010.0,0.075826]
[1729528352129,0.04622928,67011.0,67010.0,0.075826]
[1729528352751,0.04622957,67011.0,67010.0,0.075826]
[1729528353049,0.03726926,67013.0,67010.0,0.13535945]
[1729528353231,0.3608,67014.0,67012.0,0.04469595]
[1729528353549,0.435422,67014.0,67013.0,0.04469595]
[1729528354143,0.435422,67014.0,67013.0,0.0002]
[1729528354534,0.004,67014.0,67013.0,0.074823]
[1729528354844,0.006,67014.0,67013.0,0.074823]
[1729528355029,0.002,67014.0,67013.0,0.074823]
[1729528356645,0.080622,67014.0,67013.0,0.081823]
[1729528356849,0.080622,67014.0,67013.0,0.12627669]
[1729528357050,0.080622,67014.0,67013.0,0.05165285]
[1729528357259,0.075622,67014.0,67013.0,0.05165285]
[1729528357437,0.074622,67014.0,67013.0,0.04465285]
[1729528357744,0.074622,67014.0,67013.0,0.04765285]
[1729528358044,0.079622,67014.0,67013.0,0.04765285]
[1729528358342,0.075622,67014.0,67013.0,0.02690647]
[1729528358546,0.079622,67014.0,67013.0,0.02690647]
[1729528359541,0.079622,67014.0,67013.0,0.10152947]
[1729528359542,0.005,67014.0,67013.0,0.10152947]
[1729528359848,0.07462,67016.0,67014.0,0.074622]
[1729528360048,0.07462,67016.0,67015.0,0.05945187]
[1729528360247,0.07462,67016.0,67015.0,0.0002]
[1729528360543,0.19289833,67020.0,67015.0,0.0002]
[1729528360950,0.074616,67019.0,67018.0,0.04443939]
[1729528361158,0.074619,67017.0,67015.0,0.0002]
[1729528361449,0.0004,67016.0,67015.0,0.0002]
[1729528361653,0.0004,67016.0,67015.0,0.0072]
[1729528363154,0.0004,67016.0,67015.0,0.078821]
[1729528363647,0.07502,67016.0,67015.0,0.078821]
[1729528364044,0.07502,67016.0,67015.0,0.074821]
[1729528364244,0.07502,67016.0,67015.0,0.077821]
[1729528364438,0.0004,67016.0,67015.0,0.077821]
[1729528364951,0.0004,67016.0,67015.0,0.078821]
[1729528365148,0.0004,67016.0,67015.0,0.076821]
[1729528365343,0.0004,67016.0,67015.0,0.080821]
[1729528366455,0.0004,67016.0,67015.0,0.078821]
[1729528367452,0.0004,67016.0,67015.0,0.085821]
[1729528367755,0.0014,67016.0,67015.0,0.085821]
[1729528367955,0.0014,67016.0,67015.0,0.083821]
[1729528368147,0.0014,67016.0,67015.0,0.082821]
[1729528368653,0.0014,67016.0,67015.0,0.328521]
[1729528368849,0.0024,67016.0,67015.0,0.337521]
[1729528369259,0.0024,67016.0,67015.0,0.089821]
[1729528370455,0.0014,67016.0,67015.0,0.086821]
[1729528370665,0.0014,67016.0,67015.0,0.13126039]
[1729528371155,0.0014,67016.0,67015.0,0.0002]
[1729528371156,0.0004,67016.0,67015.0,0.0002]
[1729528371343,0.0004,67016.0,67015.0,0.0062]
[1729528371344,0.07602,67016.0,67015.0,0.0062]
[1729528372049,0.074622,67014.0,67013.0,0.0002]
[1729528372253,0.075022,67014.0,67013.0,0.0002]
[1729528373251,0.075022,67014.0,67013.0,0.0012]
[1729528373454,0.083022,67014.0,67013.0,0.0012]
[1729528374144,0.083022,67014.0,67013.0,0.0062]
[1729528374952,0.083022,67014.0,67013.0,0.0022]
[1729528375143,0.089022,67014.0,67013.0,0.0022]
[1729528375854,0.44768,67013.0,67003.0,0.05959118]
[1729528376056,0.074638,67000.0,66999.0,0.00092]
[1729528376247,0.07523801,67000.0,66994.0,0.00223873]
[1729528376447,0.074643,66995.0,66994.0,0.00223873]
[1729528376647,0.07524301,66995.0,66994.0,0.07688273]
[1729528376946,0.07524301,66995.0,66994.0,0.00223873]
[1729528377651,0.07624301,66995.0,66994.0,0.00923873]
[1729528379452,0.07724301,66995.0,66994.0,0.01023873]
[1729528379662,0.00260001,66995.0,66994.0,0.01023873]
[1729528379858,0.00260001,66995.0,66994.0,0.08488273]
[1729528380161,0.3608,66997.0,66994.0,0.14876507]
[1729528380359,0.00060001,67000.0,66999.0,0.074639]
[1729528380873,0.00060001,67000.0,66999.0,0.074839]
[1729528381253,0.00060001,67004.0,67003.0,0.074634]
[1729528381459,0.00060001,67004.0,67003.0,0.21314638]
[1729528381655,0.00060001,67004.0,67003.0,0.21334638]
[1729528383163,0.00060001,67013.0,67003.0,0.074834]
[1729528383359,0.03656544,67012.0,67006.0,0.074631]
[1729528383546,0.074629,67008.0,67006.0,0.074631]
[1729528383950,0.00060001,67013.0,67004.0,0.074633]
[1729528384146,0.00060001,67013.0,67003.0,0.0002]
[1729528384147,0.00060001,67005.0,67003.0,0.0002]
[1729528384348,0.074633,67004.0,67003.0,0.0002]
[1729528384550,0.07523301,67004.0,67003.0,0.0002]
[1729528385052,0.00060001,67004.0,67003.0,0.074834]
[1729528386361,0.00060001,67004.0,67003.0,0.076834]
[1729528386960,0.00160001,67004.0,67003.0,0.076834]
[1729528387866,0.00260001,67004.0,67003.0,0.079834]
[1729528388160,0.00060001,67013.0,67012.0,0.074624]
[1729528388467,0.00060001,67013.0,67012.0,0.074824]
[1729528388869,0.0371641,67013.0,67012.0,0.074824]
[1729528389062,0.00060001,67013.0,67012.0,0.074824]
[1729528389366,0.00560001,67013.0,67012.0,0.074824]
[1729528390359,0.00060001,67013.0,67012.0,0.075824]
[1729528390657,0.00360001,67013.0,67012.0,0.075824]
[1729528391264,0.00060001,67013.0,67012.0,0.075824]
[1729528391463,0.00060001,67013.0,67012.0,0.078824]
[1729528391957,0.00460001,67013.0,67012.0,0.077824]
[1729528392367,0.00460001,67013.0,67012.0,0.078824]
[1729528392766,0.00460001,67013.0,67012.0,0.0072]
[1729528392969,0.07922301,67013.0,67012.0,0.0072]
[1729528393269,0.07522301,67013.0,67012.0,0.0042]
[1729528393461,0.07522301,67013.0,67012.0,0.0062]
[1729528393979,0.00060001,67013.0,67012.0,0.441624]
[1729528394273,0.00060001,67013.0,67012.0,0.437624]
[1729528394473,0.07522301,67013.0,67012.0,0.0052]
[1729528394966,0.07522301,67013.0,67012.0,0.0042]
[1729528395573,0.07522301,67013.0,67012.0,0.0052]
[1729528395878,0.52790301,67013.0,67012.0,0.0022]
[1729528396073,0.52790301,67013.0,67012.0,0.0002]
[1729528396370,0.53390301,67013.0,67012.0,0.0002]
[1729528397361,0.52890301,67013.0,67012.0,0.0002]
[1729528397566,0.53590301,67013.0,67003.0,0.0002]
[1729528397870,0.43603301,67004.0,67003.0,0.0002]
[1729528398066,0.51844754,67004.0,67003.0,0.0002]
[1729528398266,0.57201313,67004.0,67003.0,0.0002]
[1729528400271,1.02073049,67004.0,67003.0,0.0002]
[1729528401379,1.02073049,67004.0,67003.0,0.00016]
[1729528402186,0.57301049,67004.0,67003.0,0.00016]
[1729528402677,1.02073049,67004.0,67003.0,0.00016]
[1729528402976,0.074638,67000.0,66999.0,0.0002]
[1729528403179,0.0830119,67000.0,66999.0,0.0002]
[1729528403870,0.0830119,67000.0,66985.0,0.02428153]
[1729528404081,0.0830119,67000.0,66970.0,0.00076]
[1729528404082,0.07466,66980.0,66970.0,0.00076]
[1729528404376,0.00060001,66980.0,66970.0,0.3608]
[1729528404576,0.36140001,66980.0,66970.0,0.3608]
[1729528404768,0.44382804,66980.0,66970.0,0.3608]
[1729528404963,0.44382804,66980.0,66974.0,0.074666]
[1729528405169,0.44382804,66980.0,66965.0,0.1957]
[1729528405579,0.44382804,66980.0,66979.0,0.0012]
[1729528405968,0.44382804,66980.0,66979.0,0.0002]
[1729528406168,0.32502401,66980.0,66979.0,0.0002]
[1729528409280,0.77290401,66980.0,66979.0,0.0002]
[1729528410074,0.77290401,66980.0,66965.0,0.0673]
[1729528410275,0.36140001,66966.0,66965.0,0.0673]
[1729528410975,0.00060001,66966.0,66965.0,0.141977]
[1729528411373,0.00060001,66966.0,66965.0,0.145977]
[1729528411975,0.3608,66974.0,66965.0,0.145977]
[1729528411976,0.3608,66974.0,66965.0,0.5203]
[1729528412175,0.3608,66974.0,66973.0,0.0002]
[1729528413071,0.44324674,66974.0,66973.0,0.0002]
[1729528413289,0.49683327,66974.0,66973.0,0.0002]
[1729528413984,0.13603327,66974.0,66973.0,0.074668]
[1729528414174,0.0535812,66979.0,66970.0,0.04148891]
[1729528414369,0.0535812,66979.0,66978.0,0.0002]
[1729528414778,0.0535812,66979.0,66978.0,0.074862]
[1729528415383,0.0545812,66979.0,66978.0,0.074862]
[1729528416987,0.36164,66990.0,66978.0,0.44812]
[1729528416988,0.3608,66990.0,66978.0,0.44812]
[1729528417190,0.05357469,66989.0,66985.0,0.361]
[1729528417490,0.00060001,66995.0,66988.0,0.0002]
[1729528417796,0.00060001,67000.0,66998.0,0.07464]
[1729528417986,0.00060001,67000.0,66999.0,0.074839]
[1729528418996,0.00060001,67000.0,66999.0,0.10133962]
[1729528419291,0.00960001,67000.0,66999.0,0.0002]
[1729528419789,0.05543486,67000.0,66999.0,0.0002]
[1729528420289,0.13007286,67000.0,66999.0,0.0002]
[1729528420685,0.12107286,67000.0,66999.0,0.0002]
[1729528420886,0.12307286,67000.0,66999.0,0.0002]
[1729528421395,0.07523801,67000.0,66999.0,0.0002]
[1729528421590,0.07523801,67000.0,66999.0,0.0042]
[1729528422397,0.12107951,67000.0,66999.0,0.0032]
[1729528422597,0.12707951,67000.0,66999.0,0.0032]
[1729528423084,0.08123801,67000.0,66999.0,0.0032]
[1729528423285,0.12708177,67000.0,66999.0,0.0032]
[1729528423492,0.08123801,67000.0,66999.0,0.0032]
[1729528423891,0.08123801,67000.0,66999.0,0.0002]
[1729528424099,0.08623801,67000.0,66999.0,0.0002]
[1729528424281,0.08023801,67000.0,66999.0,0.0002]
[1729528424479,0.09123801,67000.0,66999.0,0.0002]
[1729528424691,0.08623801,67000.0,66999.0,0.0002]
[1729528425497,0.08023801,67000.0,66999.0,0.0002]
[1729528425808,0.01160001,67000.0,66999.0,0.0002]
[1729528426097,0.72312001,67005.0,66999.0,0.074839]
[1729528426098,0.00152001,67005.0,66999.0,0.074839]
[1729528426302,0.00060001,67005.0,67004.0,0.074833]
[1729528426496,0.03716428,67005.0,67004.0,0.074833]
[1729528426887,0.00060001,67005.0,67004.0,0.074833]
[1729528427288,0.435425,67012.0,67004.0,0.0002]
[1729528427289,0.3608,67012.0,67004.0,0.0002]
[1729528427490,0.03656538,67011.0,67008.0,0.074628]
[1729528427785,0.03656538,67010.0,67009.0,0.074628]
[1729528428206,0.36164,67012.0,67004.0,0.0002]
[1729528428496,0.00060001,67005.0,67004.0,0.074832]
[1729528428796,0.00060001,67005.0,67004.0,0.0002]
[1729528429197,0.00060001,67005.0,67004.0,0.074833]
[1729528430596,0.00060001,67005.0,67004.0,0.140333]
[1729528430795,0.02060001,67005.0,67004.0,0.142333]
[1729528431706,0.01160001,67005.0,67004.0,0.0677]
[1729528431892,0.01160001,67005.0,67004.0,0.0012]
[1729528431893,0.07523201,67005.0,67004.0,0.0012]
[1729528432506,0.07523201,67005.0,67004.0,0.0002]
[1729528434109,0.08323201,67005.0,67004.0,0.0012]
[1729528434295,0.08323201,67005.0,67004.0,0.0022]
[1729528434599,0.08023201,67005.0,67004.0,0.0012]
[1729528434996,0.13507396,67005.0,67004.0,0.00080158]
[1729528435208,0.13707396,67005.0,67004.0,0.00180158]
[1729528436096,0.09123201,67005.0,67004.0,0.00180158]
[1729528436293,0.09123201,67005.0,66995.0,0.0002]
[1729528436294,0.1983621,67005.0,66986.0,0.00731347]
[1729528436503,0.435441,66997.0,66996.0,0.074642]
[1729528436799,0.66515041,66997.0,66996.0,0.074642]
[1729528437003,0.59050941,66997.0,66988.0,0.0002]
[1729528437201,0.074646,66993.0,66992.0,0.074646]
[1729528437396,0.30435541,66993.0,66982.0,0.02241694]
[1729528437596,0.00060001,66983.0,66982.0,0.09707494]
[1729528437800,0.16129544,66983.0,66982.0,0.09707494]
[1729528437996,0.16129544,66983.0,66982.0,0.1045789]
[1729528438207,0.16129633,66983.0,66982.0,0.1045789]
[1729528438413,0.16129633,66983.0,66982.0,0.08216196]
[1729528438599,0.10000767,66983.0,66982.0,0.10867054]
[1729528438793,0.10100767,66983.0,66982.0,0.11367054]
[1729528439000,0.10200767,66983.0,66982.0,0.12167054]
[1729528439605,0.08904216,66983.0,66982.0,0.92235054]
[1729528439795,0.09004216,66983.0,66982.0,0.92835054]
[1729528439996,0.34392784,66983.0,66982.0,0.92835054]
[1729528440492,0.23697706,66996.0,66982.0,0.91819254]
[1729528440698,0.17614481,66995.0,66994.0,0.435444]
[1729528440893,0.17614481,66995.0,66994.0,0.44310184]
[1729528441502,0.13030345,66995.0,66994.0,0.44310184]
[1729528442394,0.13030345,66995.0,66994.0,0.28772296]
[1729528442707,0.13730345,66995.0,66994.0,0.28772296]
[1729528443298,0.007,66995.0,66994.0,0.81016696]
[1729528443514,0.001,66996.0,66995.0,0.074643]
[1729528443807,0.001,66996.0,66995.0,0.837443]
[1729528444505,0.00060001,66999.0,66998.0,0.07464]
[1729528444903,0.3608,67005.0,67004.0,0.074633]
[1729528445298,0.3608,67005.0,67004.0,0.522353]
[1729528445703,0.3608,67013.0,67012.0,0.074624]
[1729528448306,0.3748,67013.0,67012.0,0.002]
[1729528448506,0.449423,67013.0,67012.0,0.002]
[1729528448809,0.3748,67013.0,67012.0,0.076624]
[1729528449309,0.3748,67013.0,67012.0,0.002]
[1729528449516,0.449423,67013.0,67012.0,0.002]
[1729528451208,0.449423,67013.0,67012.0,0.076624]
[1729528451408,0.47417799,67013.0,67012.0,0.076624]
[1729528452315,0.53544951,67013.0,67009.0,0.0685]
[1729528452507,0.11482136,67012.0,67009.0,0.0685]
[1729528452715,0.11482136,67011.0,67010.0,0.074626]
[1729528454012,0.11482136,67011.0,67010.0,0.14208]
[1729528454319,0.11482136,67011.0,67010.0,0.216706]
[1729528455016,0.11882136,67011.0,67010.0,0.216706]
[1729528455712,0.35661855,67011.0,67010.0,0.216706]
[1729528455924,0.36261855,67011.0,67010.0,0.075626]
[1729528456116,0.36261855,67011.0,67010.0,0.001]
[1729528456117,0.43724355,67011.0,67010.0,0.001]
[1729528456319,0.36261855,67011.0,67010.0,0.075626]
[1729528456714,0.12482136,67011.0,67010.0,0.075626]
[1729528458614,0.01,67011.0,67010.0,0.323326]
[1729528460011,0.084625,67011.0,67010.0,0.001]
[1729528460511,0.445425,67011.0,67010.0,0.001]
[1729528466725,0.445425,67011.0,67010.0,0.075626]
[1729528467113,0.445425,67011.0,67010.0,0.001]
[1729528468823,0.445425,67011.0,67010.0,0.00067207]
[1729528470027,0.3708,67011.0,67010.0,0.07529807]
[1729528471620,0.0647,67024.0,67010.0,0.07529807]
[1729528471621,0.3608,67019.0,67010.0,0.00067207]
[1729528471821,0.3608,67019.0,67018.0,0.074618]
[1729528473025,0.3608,67019.0,67018.0,0.075618]
[1729528473231,0.3788,67019.0,67018.0,0.075618]
[1729528473432,0.49360944,67019.0,67018.0,0.075618]
[1729528473618,0.53943284,67019.0,67018.0,0.075618]
[1729528473929,0.48960944,67019.0,67018.0,0.075618]
[1729528474127,0.57622544,67019.0,67018.0,0.002]
[1729528474321,0.57622544,67019.0,67015.0,0.07462]
[1729528474632,0.18379548,67018.0,67017.0,0.074619]
[1729528475426,0.18379548,67018.0,67006.0,0.3608]
[1729528475619,0.3608,67012.0,67011.0,0.074625]
[1729528475824,0.47560944,67012.0,67011.0,0.074625]
[1729528476629,0.47560944,67012.0,67006.0,0.38443157]
[1729528476824,0.11480944,67011.0,67010.0,0.074626]
[1729528477019,0.35297894,67011.0,67010.0,0.074626]
[1729528477216,0.35297894,67011.0,67006.0,0.45906157]
[1729528477418,0.07463,67007.0,67006.0,0.02363157]
[1729528477620,0.11480944,67007.0,67001.0,0.13772]
[1729528477824,0.3060695,67011.0,67001.0,0.13772]
[1729528477825,0.3608,67004.0,67001.0,0.13772]
[1729528478023,0.06126516,67003.0,67002.0,0.074635]
[1729528478321,0.11480944,67003.0,67002.0,0.074635]
[1729528479426,0.12817828,67003.0,67001.0,0.074636]
[1729528479629,0.3608,67004.0,66995.0,0.23097706]
[1729528479630,0.11480944,67002.0,66995.0,0.23097706]
[1729528479942,0.11480944,67001.0,67000.0,0.06717341]
[1729528480435,0.11480944,67001.0,66995.0,0.23097706]
[1729528480436,0.3608,67004.0,66995.0,0.23097706]
[1729528480634,0.3608,67004.0,67003.0,0.074634]
[1729528481829,0.3608,67004.0,67003.0,0.076634]
[1729528483740,0.3608,67004.0,67003.0,0.079634]
[1729528485331,0.3608,67004.0,67003.0,0.078634]
[1729528485332,0.435433,67004.0,67003.0,0.078634]
[1729528485734,0.435433,67004.0,67003.0,0.002]
[1729528485946,0.435433,67004.0,67003.0,0.005]
[1729528486335,0.435433,67004.0,67003.0,0.002]
[1729528486540,0.3608,67004.0,67003.0,0.004]
[1729528486931,0.435433,67004.0,67003.0,0.004]
[1729528487127,0.435433,67004.0,67003.0,0.02715372]
[1729528487333,0.074636,67001.0,67000.0,0.074637]
[1729528487538,0.074639,67000.0,66996.0,0.074641]
[1729528487733,0.3608,66997.0,66996.0,0.08210314]
[1729528488533,0.41435954,66997.0,66996.0,0.08210314]
[1729528489444,0.41435954,66997.0,66996.0,0.09110314]
[1729528489841,0.47563894,66997.0,66996.0,0.09110314]
[1729528490140,0.47763894,66997.0,66996.0,0.10010314]
[1729528491839,0.41635954,66997.0,66996.0,0.10010314]
[1729528495150,0.47763894,66997.0,66996.0,0.10010314]
[1729528495542,0.3628,66997.0,66996.0,0.10010314]
[1729528500747,0.3608,67010.0,66996.0,0.10010314]
[1729528500748,0.3608,67010.0,66996.0,0.83406114]
[1729528500976,0.0679,67011.0,67009.0,0.074628]
[1729528501349,0.0746,67014.0,67005.0,0.3608]
[1729528501661,0.069,67020.0,67005.0,0.3608]
[1729528501951,0.074618,67018.0,67014.0,0.074622]
[1729528502145,0.069,67020.0,67013.0,0.3608]
[1729528502351,0.071,67025.0,67020.0,0.074615]
[1729528502548,0.074612,67023.0,67020.0,0.074615]
[1729528502756,0.074612,67023.0,67013.0,0.3608]
[1729528503053,0.01,67018.0,67014.0,0.13872]
[1729528503363,0.074619,67017.0,67014.0,0.13872]
[1729528503546,0.04582312,67016.0,67015.0,0.074621]
[1729528504054,0.04582312,67016.0,67013.0,0.3618]
[1729528504245,0.074622,67014.0,67013.0,0.3618]
[1729528504447,0.074622,67014.0,67013.0,0.001]
[1729528504448,0.53478908,67014.0,67013.0,0.001]
[1729528504644,0.074634,67003.0,66998.0,0.3608]
[1729528504946,0.09936708,67003.0,66998.0,0.3608]
[1729528505251,0.074638,67000.0,66998.0,0.3608]
[1729528505552,0.04582312,66999.0,66998.0,0.3608]
[1729528506050,0.04582312,66999.0,66998.0,0.38390814]
[1729528506254,0.04582312,66999.0,66998.0,0.45854814]
[1729528506452,0.09936708,66999.0,66998.0,0.45854814]
[1729528506755,0.09936708,66999.0,66998.0,0.47254814]
[1729528507646,0.10036708,66999.0,66998.0,0.47254814]
[1729528508256,0.10037883,66999.0,66998.0,0.46554814]
[1729528508446,0.10137883,66999.0,66998.0,0.47254814]
[1729528508638,0.10137883,66999.0,66998.0,0.39790814]
[1729528508845,0.10137949,66999.0,66998.0,0.39790814]
[1729528509043,0.17601849,66999.0,66998.0,0.39790814]
[1729528510256,0.36954286,66999.0,66998.0,0.39790814]
[1729528510449,0.58614286,66999.0,66998.0,0.39790814]
[1729528510751,0.58614286,66999.0,66998.0,0.51170861]
[1729528510752,0.48676337,66999.0,66998.0,0.51170861]
[1729528510953,0.48676337,66999.0,66998.0,0.15090861]
[1729528510954,0.44940275,66999.0,66998.0,0.15090861]
[1729528511358,0.44940275,66999.0,66998.0,0.20234722]
[1729528511557,0.44940275,66999.0,66998.0,0.014]
[1729528515155,0.25587838,66999.0,66998.0,0.014]
[1729528515364,0.25587838,66999.0,66998.0,0.07361427]
[1729528515571,0.03927838,66999.0,66998.0,0.07361427]
[1729528515757,0.074639,66999.0,66998.0,0.014]